[Event "98th Caplin Hastings Masters 2024-25"]
[Site "Hastings"]
[Date "2024.12.30"]
[Round "4.48"]
[White "Vaidyanathan, Adithya"]
[Black "Chapman, Luke"]
[Result "1-0"]
[ECO "A88"]
[WhiteElo "1904"]
[BlackElo "1706"]
[Annotator "NA RC"]
[PlyCount "57"]
[EventDate "2024.12.23"]
[EventType "swiss"]
[EventCountry "ENG"]
[SourceTitle "playchess.com"]
[Source "ChessBase"]
[SourceQuality "1"]
[TimeControl "5400+30"]

1. d4 {[%emt 0:00:02]} f5 {[%emt 0:00:04]} 2. c4 {[%emt 0:00:04]} Nf6 {[%emt 0:00:05]} 3. Nc3 {[%emt 0:00:02]} g6 {[%emt 0:00:07]} 4. Nf3 {[%emt 0:00:02]} Bg7 {[%emt 0:00:06]} 5. g3 {[%emt 0:00:03]} O-O {[%emt 0:00:06]} 6. Bg2 {[%emt 0:00:01]} d6 {[%emt 0:00:07]} 7. O-O {[%emt 0:00:03]} c6 {[%emt 0:00:04]} 8. b3 {[%emt 0:00:12]} e5 {[%emt 0:00:27]} 9. dxe5 {[%emt 0:00:03]} dxe5 {[%emt 0:00:04]} 10. Ba3 {[%emt 0:00:05]} Qxd1 {[%emt 0:00:48]} 11. Raxd1 {[%emt 0:00:07]} Re8 {[%emt 0:00:04]} 12. e4 {[%emt 0:00:10]} f4 {[%emt 0:13:18]} 13. Bd6 {[%emt 0:05:31]} fxg3 {[%emt 0:01:49]} 14. hxg3 {[%emt 0:02:04]} Bg4 {[%emt 0:04:03]} 15. Rd3 {[%emt 0:03:18]} Nfd7 {[%emt 0:04:46]} 16. Nh2 {[%emt 0:08:32]} Be6 {[%emt 0:06:23]} 17. f4 {[%emt 0:05:57]} Na6 {[%emt 0:03:00]} 18. f5 {[%emt 0:02:54]} Bf7 {[%emt 0:00:38]} 19. Bh3 {[%emt 0:03:57]} Rad8 {[%emt 0:02:43]} 20. Rdf3 {[%emt 0:02:40]} Ndc5 {[%emt 0:03:53]} 21. Bxc5 {[%emt 0:08:35]} Nxc5 {[%emt 0:00:27]} 22. fxg6 {[%emt 0:03:05]} Bxg6 {[%emt 0:01:33]} 23. Bf5 {[%emt 0:00:36]} Bxf5 {[%emt 0:09:15]} 24. Rxf5 {[%emt 0:00:10]} Rd3 {[%emt 0:01:36]} 25. R1f3 {[%emt 0:01:17]} Rd4 {[%emt 0:00:50]} 26. Ng4 {[%emt 0:02:39]} Nxe4 {[%emt 0:02:00]} 27. Nxe4 {[%emt 0:00:46]} Rxe4 {[%emt 0:00:02]} 28. Rg5 {[%emt 0:00:11]} Rf8 {[%emt 0:05:54]} 29. Nh6+ {[%emt 0:00:37]} 1-0

[Event "98th Caplin Hastings Masters 2024-25"]
[Site "Hastings"]
[Date "2024.12.30"]
[Round "4.49"]
[White "Keely, Leo A"]
[Black "Kim, Nayoon B"]
[Result "1-0"]
[ECO "B48"]
[WhiteElo "1899"]
[BlackElo "1663"]
[Annotator "NA RC"]
[PlyCount "107"]
[EventDate "2024.12.23"]
[EventType "swiss"]
[EventCountry "ENG"]
[SourceTitle "playchess.com"]
[Source "ChessBase"]
[SourceQuality "1"]
[TimeControl "5400+30"]

1. e4 {[%emt 0:00:02]} c5 {[%emt 0:00:00]} 2. Nf3 {[%emt 0:00:15]} e6 {[%emt 0:00:00]} 3. d4 {[%emt 0:00:13]} cxd4 {[%emt 0:00:00]} 4. Nxd4 {[%emt 0:00:12]} Nc6 {[%emt 0:00:00]} 5. Nc3 {[%emt 0:00:50]} Qc7 {[%emt 0:00:11]} 6. Be3 {[%emt 0:02:07]} Nf6 {[%emt 0:02:25]} 7. Qf3 {[%emt 0:05:49]} Bb4 {[%emt 0:06:53]} 8. Ndb5 {[%emt 0:06:12]} Qb8 {[%emt 0:03:14]} 9. a3 {[%emt 0:01:56]} Bxc3+ {[%emt 0:00:37]} 10. Nxc3 {[%emt 0:00:31]} d6 {[%emt 0:24:51]} 11. O-O-O {[%emt 0:01:38]} a6 {[%emt 0:01:39]} 12. Qg3 {[%emt 0:02:35]} Rg8 {[%emt 0:17:44]} 13. Qxd6 {[%emt 0:02:26]} Qxd6 {[%emt 0:00:32]} 14. Rxd6 {[%emt 0:00:09]} Bd7 {[%emt 0:02:31]} 15. Be2 {[%emt 0:01:39]} Rc8 {[%emt 0:00:49]} 16. Rhd1 {[%emt 0:01:03]} Nb8 {[%emt 0:04:53]} 17. e5 {[%emt 0:01:47]} Nd5 {[%emt 0:01:37]} 18. Nxd5 {[%emt 0:00:12]} exd5 {[%emt 0:31:34]} 19. R6xd5 {[%emt 0:00:31]} Bc6 {[%emt 0:00:00]} 20. R5d2 {[%emt 0:00:26]} Bxg2 {[%emt 0:00:00]} 21. Bg4 {[%emt 0:00:32]} Ke7 {[%emt 0:00:00]} 22. Bxc8 {[%emt 0:01:21]} Rxc8 {[%emt 0:00:00]} 23. Rg1 {[%emt 0:02:21]} Be4 {[%emt 0:00:00]} 24. h4 {[%emt 0:03:54]} Nc6 {[%emt 0:00:00]} 25. b4 {[%emt 0:05:45]} Nxe5 {[%emt 0:00:00]} 26. Bc5+ {[%emt 0:01:38]} Kf6 {[%emt 0:00:00]} 27. Bd4 {[%emt 0:00:24]} Ke6 {[%emt 0:00:00]} 28. Bxe5 {[%emt 0:04:46]} Kxe5 {[%emt 0:00:00]} 29. Rxg7 {[%emt 0:00:37]} Bg6 {[%emt 0:00:00]} 30. h5 {[%emt 0:00:29]} Kf6 {[%emt 0:00:00]} 31. hxg6 {[%emt 0:00:13]} Kxg7 {[%emt 0:00:00]} 32. gxh7 {[%emt 0:00:09]} Kxh7 {[%emt 0:00:00]} 33. Rd7 {[%emt 0:00:24]} b5 {[%emt 0:00:00]} 34. Rxf7+ {[%emt 0:00:19]} Kg6 {[%emt 0:00:00]} 35. Rd7 {[%emt 0:01:12]} Rc6 {[%emt 0:00:00]} 36. Rd5 {[%emt 0:00:19]} Rf6 {[%emt 0:00:00]} 37. Kb2 {[%emt 0:01:03]} Kf7 {[%emt 0:00:00]} 38. a4 {[%emt 0:01:08]} bxa4 {[%emt 0:00:00]} 39. Ra5 {[%emt 0:00:10]} Ke7 {[%emt 0:00:00]} 40. Rxa4 {[%emt 0:01:22]} Kd7 {[%emt 0:00:00]} 41. Ra1 {[%emt 0:00:13]} Kc7 {[%emt 0:00:00]} 42. Rf1 {[%emt 0:00:16]} Rf3 {[%emt 0:00:00]} 43. c3 {[%emt 0:00:15]} Kb6 {[%emt 0:00:00]} 44. Kb3 {[%emt 0:02:10]} Kb5 {[%emt 0:00:00]} 45. Rh1 {[%emt 0:02:40]} Rxf2 {[%emt 0:00:01]} 46. Rh5+ {[%emt 0:00:09]} Kb6 {[%emt 0:01:01]} 47. Rh6+ {[%emt 0:01:02]} Kb7 {[%emt 0:00:33]} 48. c4 {[%emt 0:02:17]} Rf7 {[%emt 0:03:55]} 49. c5 {[%emt 0:01:52]} Rf4 {[%emt 0:03:50]} 50. Rh7+ {[%emt 0:03:25]} Kb8 {[%emt 0:01:12]} 51. Ka4 {[%emt 0:01:41]} Rf6 {[%emt 0:04:27]} 52. Ka5 {[%emt 0:00:26]} Rc6 {[%emt 0:00:05]} 53. Rd7 {[%emt 0:00:32]} Ka8 {[%emt 0:01:31]} 54. Rd6 {[%emt 0:00:11]} 1-0

[Event "98th Caplin Hastings Masters 2024-25"]
[Site "Hastings"]
[Date "2024.12.30"]
[Round "4.50"]
[White "Bazakutsa, Svyatoslav"]
[Black "Stokes, Stephen"]
[Result "1-0"]
[ECO "A06"]
[WhiteElo "2484"]
[BlackElo "1866"]
[Annotator "RC"]
[PlyCount "89"]
[EventDate "2024.12.23"]
[EventType "swiss"]
[EventCountry "ENG"]
[SourceTitle "playchess.com"]
[Source "ChessBase"]
[SourceQuality "1"]
[TimeControl "5400+30"]

1. b3 {[%emt 0:00:22]} Nf6 {[%emt 0:00:06]} 2. Bb2 {[%emt 0:00:07]} d5 {[%emt 0:00:18]} 3. Nf3 {[%emt 0:00:08]} c5 {[%emt 0:00:16]} 4. e3 {[%emt 0:00:16]} Nc6 {[%emt 0:00:26]} 5. Bb5 {[%emt 0:00:14]} Bf5 {[%emt 0:00:46]} 6. Bxc6+ {[%emt 0:05:52]} bxc6 {[%emt 0:00:12]} 7. Ne5 {[%emt 0:00:40]} Qc7 {[%emt 0:02:24]} 8. d3 {[%emt 0:02:04]} e6 {[%emt 0:10:05]} 9. O-O {[%emt 0:06:29]} Bd6 {[%emt 0:08:47]} 10. f4 {[%emt 0:01:56]} O-O {[%emt 0:13:54]} 11. Nd2 {[%emt 0:05:57]} Nd7 {[%emt 0:06:30]} 12. e4 {[%emt 0:26:30]} Bg6 {[%emt 0:05:04]} 13. Nxd7 {[%emt 0:11:02]} Qxd7 {[%emt 0:00:08]} 14. h4 {[%emt 0:00:11]} f5 {[%emt 0:07:06]} 15. h5 {[%emt 0:02:21]} Be8 {[%emt 0:01:20]} 16. exd5 {[%emt 0:02:38]} cxd5 {[%emt 0:01:22]} 17. h6 {[%emt 0:04:26]} gxh6 {[%emt 0:02:41]} 18. Qf3 {[%emt 0:01:01]} Bg6 {[%emt 0:01:03]} 19. Qg3 {[%emt 0:05:52]} Be7 {[%emt 0:05:07]} 20. Nf3 {[%emt 0:01:42]} Bf6 {[%emt 0:02:16]} 21. Bxf6 {[%emt 0:00:23]} Rxf6 {[%emt 0:00:09]} 22. Ne5 {[%emt 0:00:08]} Qc7 {[%emt 0:03:00]} 23. c3 {[%emt 0:03:38]} Rd8 {[%emt 0:01:24]} 24. d4 {[%emt 0:03:56]} Qb6 {[%emt 0:01:15]} 25. Qf2 {[%emt 0:01:02]} cxd4 {[%emt 0:01:47]} 26. cxd4 {[%emt 0:00:16]} Qb7 {[%emt 0:04:16]} 27. Rac1 {[%emt 0:00:13]} Rc8 {[%emt 0:01:29]} 28. Rxc8+ {[%emt 0:02:07]} Qxc8 {[%emt 0:00:07]} 29. Qd2 {[%emt 0:00:07]} Rf8 {[%emt 0:02:00]} 30. Rc1 {[%emt 0:00:26]} Qb7 {[%emt 0:00:30]} 31. Rc6 {[%emt 0:01:04]} Re8 {[%emt 0:01:55]} 32. Qc3 {[%emt 0:04:05]} Qb5 {[%emt 0:03:04]} 33. Rc7 {[%emt 0:01:56]} Qe2 {[%emt 0:01:31]} 34. Qh3 {[%emt 0:02:07]} Qd1+ {[%emt 0:09:02]} 35. Kh2 {[%emt 0:00:15]} Qh5 {[%emt 0:03:16]} 36. Rxa7 {[%emt 0:00:42]} Rc8 {[%emt 0:00:50]} 37. Qxh5 {[%emt 0:00:17]} Bxh5 {[%emt 0:00:09]} 38. Nd7 {[%emt 0:00:08]} Bf7 {[%emt 0:00:29]} 39. Nc5 {[%emt 0:00:27]} Rb8 {[%emt 0:00:33]} 40. a4 {[%emt 0:01:37]} Rb4 {[%emt 0:00:11]} 41. a5 {[%emt 0:00:07]} Rxd4 {[%emt 0:00:28]} 42. a6 {[%emt 0:00:15]} Rxf4 {[%emt 0:02:26]} 43. Rb7 {[%emt 0:01:18]} Rf1 {[%emt 0:00:33]} 44. a7 {[%emt 0:00:05]} Ra1 {[%emt 0:00:07]} 45. Na4 {[%emt 0:00:20]} 1-0

[Event "98th Caplin Hastings Masters 2024-25"]
[Site "Hastings"]
[Date "2024.12.30"]
[Round "4.51"]
[White "Fryer, David W"]
[Black "Raffin-Sumyk, Piermael"]
[Result "1-0"]
[ECO "A07"]
[WhiteElo "1928"]
[BlackElo "1512"]
[Annotator "NA RC"]
[PlyCount "63"]
[EventDate "2024.12.23"]
[EventType "swiss"]
[EventCountry "ENG"]
[SourceTitle "playchess.com"]
[Source "ChessBase"]
[SourceQuality "1"]
[TimeControl "5400+30"]

1. Nf3 {[%emt 0:00:04]} d5 {[%emt 0:00:15]} 2. g3 {[%emt 0:00:05]} Nf6 {[%emt 0:00:18]} 3. Bg2 {[%emt 0:00:09]} Bf5 {[%emt 0:00:39]} 4. O-O {[%emt 0:00:17]} e6 {[%emt 0:00:23]} 5. d3 {[%emt 0:01:55]} Bd6 {[%emt 0:01:09]} 6. Nbd2 {[%emt 0:05:04]} h5 {[%emt 0:03:31]} 7. Re1 {[%emt 0:01:53]} Bc5 {[%emt 0:17:18]} 8. Nb3 {[%emt 0:17:37]} Bd6 {[%emt 0:03:13]} 9. Bg5 {[%emt 0:02:47]} Nbd7 {[%emt 0:02:11]} 10. h3 {[%emt 0:05:30]} Qb8 {[%emt 0:06:45]} 11. Nbd4 {[%emt 0:07:26]} Bg4 {[%emt 0:22:07]} 12. Nb5 {[%emt 0:08:27]} Bxg3 {[%emt 0:11:53]} 13. fxg3 {[%emt 0:01:45]} Bxf3 {[%emt 0:07:45]} 14. exf3 {[%emt 0:00:37]} c6 {[%emt 0:02:03]} 15. Bf4 {[%emt 0:00:49]} e5 {[%emt 0:01:04]} 16. Nc3 {[%emt 0:00:54]} Kf8 {[%emt 0:00:57]} 17. Bd2 {[%emt 0:02:34]} e4 {[%emt 0:01:38]} 18. Bf4 {[%emt 0:01:21]} Qd8 {[%emt 0:01:32]} 19. dxe4 {[%emt 0:03:52]} Qb6+ {[%emt 0:02:28]} 20. Be3 {[%emt 0:01:16]} Qc7 {[%emt 0:00:44]} 21. f4 {[%emt 0:01:11]} g5 {[%emt 0:07:30]} 22. fxg5 {[%emt 0:01:21]} Rg8 {[%emt 0:01:07]} 23. gxf6 {[%emt 0:04:46]} Qxg3 {[%emt 0:00:11]} 24. Bh6+ {[%emt 0:00:30]} Ke8 {[%emt 0:00:24]} 25. exd5+ {[%emt 0:01:54]} Kd8 {[%emt 0:00:06]} 26. Re2 {[%emt 0:00:48]} Ne5 {[%emt 0:00:10]} 27. dxc6+ {[%emt 0:01:28]} Kc7 {[%emt 0:00:40]} 28. Nb5+ {[%emt 0:03:58]} Kb6 {[%emt 0:02:01]} 29. Qd4+ {[%emt 0:00:31]} Ka5 {[%emt 0:01:07]} 30. Bd2+ {[%emt 0:00:55]} Kxb5 {[%emt 0:01:11]} 31. Qb4+ {[%emt 0:00:23]} Ka6 {[%emt 0:00:41]} 32. Qa5# {[%emt 0:00:10]} 1-0

[Event "98th Caplin Hastings Masters 2024-25"]
[Site "Hastings"]
[Date "2024.12.30"]
[Round "4.52"]
[White "Ruane, Brendan J"]
[Black "Han, Yongsu"]
[Result "1-0"]
[ECO "C42"]
[WhiteElo "1869"]
[BlackElo "1718"]
[Annotator "NA RC"]
[PlyCount "69"]
[EventDate "2024.12.23"]
[EventType "swiss"]
[EventCountry "ENG"]
[SourceTitle "playchess.com"]
[Source "ChessBase"]
[SourceQuality "1"]
[TimeControl "5400+30"]

1. Nc3 {[%emt 0:00:04]} e5 {[%emt 0:00:08]} 2. e4 {[%emt 0:00:13]} Nf6 {[%emt 0:00:06]} 3. Nf3 {[%emt 0:00:07]} Bb4 {[%emt 0:00:05]} 4. Bc4 {[%emt 0:05:40]} O-O {[%emt 0:00:27]} 5. O-O {[%emt 0:01:44]} Bxc3 {[%emt 0:03:54]} 6. dxc3 {[%emt 0:00:22]} Nxe4 {[%emt 0:00:07]} 7. Nxe5 {[%emt 0:01:33]} c6 {[%emt 0:00:21]} 8. Qh5 {[%emt 0:04:52]} d5 {[%emt 0:02:29]} 9. Bd3 {[%emt 0:03:22]} Nd7 {[%emt 0:04:57]} 10. Nxd7 {[%emt 0:05:24]} Bxd7 {[%emt 0:00:25]} 11. Be3 {[%emt 0:01:43]} Re8 {[%emt 0:03:19]} 12. f3 {[%emt 0:02:45]} Nf6 {[%emt 0:01:30]} 13. Qg5 {[%emt 0:00:56]} h6 {[%emt 0:03:45]} 14. Qf4 {[%emt 0:00:07]} Nh5 {[%emt 0:06:47]} 15. Qd4 {[%emt 0:00:25]} b6 {[%emt 0:03:36]} 16. Rfe1 {[%emt 1:09:13]} Qc7 {[%emt 0:10:27]} 17. Qh4 {[%emt 0:00:00]} g6 {[%emt 0:03:41]} 18. Bxh6 {[%emt 0:00:00]} Rxe1+ {[%emt 0:01:47]} 19. Rxe1 {[%emt 0:00:00]} Qd8 {[%emt 0:01:55]} 20. Bg5 {[%emt 0:00:00]} Qf8 {[%emt 0:05:25]} 21. c4 {[%emt 0:00:00]} dxc4 {[%emt 0:07:23]} 22. Qxc4 {[%emt 0:00:00]} Re8 {[%emt 0:01:30]} 23. Rxe8 {[%emt 0:00:00]} Qxe8 {[%emt 0:00:16]} 24. Bd2 {[%emt 0:00:00]} Qe6 {[%emt 0:07:54]} 25. Qxe6 {[%emt 0:00:00]} Bxe6 {[%emt 0:01:06]} 26. b3 {[%emt 0:00:00]} Kf8 {[%emt 0:02:48]} 27. Kf2 {[%emt 0:00:00]} Ke7 {[%emt 0:00:38]} 28. g4 {[%emt 0:00:00]} Nf6 {[%emt 0:00:11]} 29. Bg5 {[%emt 0:00:00]} b5 {[%emt 0:02:05]} 30. Ke3 {[%emt 0:00:00]} Bd5 {[%emt 0:01:22]} 31. c4 {[%emt 0:00:00]} bxc4 {[%emt 0:00:23]} 32. bxc4 {[%emt 0:00:00]} Be6 {[%emt 0:00:07]} 33. Kf4 {[%emt 0:00:00]} Kd6 {[%emt 0:05:38]} 34. Bxf6 {[%emt 0:00:00]} Kc5 {[%emt 0:00:04]} 35. h4 {[%emt 0:09:30]} 1-0

[Event "98th Caplin Hastings Masters 2024-25"]
[Site "Hastings"]
[Date "2024.12.30"]
[Round "4.53"]
[White "Lee, Jungsoo"]
[Black "Bryant, Marc A"]
[Result "1-0"]
[ECO "C60"]
[WhiteElo "1705"]
[BlackElo "1825"]
[Annotator "NA RC"]
[PlyCount "61"]
[EventDate "2024.12.23"]
[EventType "swiss"]
[EventCountry "ENG"]
[SourceTitle "playchess.com"]
[Source "ChessBase"]
[SourceQuality "1"]
[TimeControl "5400+30"]

1. e4 {[%emt 0:00:03]} e5 {[%emt 0:00:03]} 2. Nf3 {[%emt 0:00:04]} Nc6 {[%emt 0:00:04]} 3. Bb5 {[%emt 0:00:05]} Nce7 {[%emt 0:00:06]} 4. Nxe5 {[%emt 0:01:36]} c6 {[%emt 0:00:05]} 5. Bc4 {[%emt 0:00:46]} d5 {[%emt 0:00:25]} 6. exd5 {[%emt 0:00:22]} Nxd5 {[%emt 0:01:12]} 7. O-O {[%emt 0:00:39]} Ngf6 {[%emt 0:00:25]} 8. d4 {[%emt 0:00:19]} Bd6 {[%emt 0:00:34]} 9. h3 {[%emt 0:01:03]} Be6 {[%emt 0:02:04]} 10. Bd3 {[%emt 0:01:36]} Qc8 {[%emt 0:01:35]} 11. Qf3 {[%emt 0:01:14]} h6 {[%emt 0:00:45]} 12. Re1 {[%emt 0:01:52]} g5 {[%emt 0:01:04]} 13. c4 {[%emt 0:00:39]} Nf4 {[%emt 0:05:06]} 14. Bxf4 {[%emt 0:00:38]} gxf4 {[%emt 0:00:21]} 15. Nc3 {[%emt 0:02:47]} Rg8 {[%emt 0:01:13]} 16. Kh1 {[%emt 0:00:36]} Rg5 {[%emt 0:06:28]} 17. Bf1 {[%emt 0:00:55]} Qc7 {[%emt 0:04:35]} 18. Nxc6 {[%emt 0:04:05]} bxc6 {[%emt 0:02:33]} 19. d5 {[%emt 0:00:12]} Rb8 {[%emt 0:05:00]} 20. dxe6 {[%emt 0:01:23]} fxe6 {[%emt 0:00:42]} 21. Rxe6+ {[%emt 0:00:28]} Kf7 {[%emt 0:00:08]} 22. Rxf6+ {[%emt 0:01:07]} Kxf6 {[%emt 0:00:34]} 23. Ne4+ {[%emt 0:00:08]} Ke7 {[%emt 0:03:13]} 24. Nxg5 {[%emt 0:00:49]} hxg5 {[%emt 0:00:12]} 25. Qg4 {[%emt 0:00:52]} Kf6 {[%emt 0:00:35]} 26. Re1 {[%emt 0:00:47]} Qc8 {[%emt 0:00:52]} 27. Qf3 {[%emt 0:01:05]} Be5 {[%emt 0:03:30]} 28. Bd3 {[%emt 0:01:12]} Rxb2 {[%emt 0:01:09]} 29. Qh5 {[%emt 0:01:02]} Qe6 {[%emt 0:05:56]} 30. Qh8+ {[%emt 0:01:35]} Kf7 {[%emt 0:02:40]} 31. Rxe5 {[%emt 0:00:11]} 1-0

[Event "98th Caplin Hastings Masters 2024-25"]
[Site "Hastings"]
[Date "2024.12.31"]
[Round "5.1"]
[White "Vestby-Ellingsen, Mads"]
[Black "Xue, Haowen"]
[Result "1/2-1/2"]
[ECO "E12"]
[WhiteElo "2383"]
[BlackElo "2502"]
[Annotator "TA"]
[PlyCount "105"]
[EventDate "2024.12.23"]
[EventType "swiss"]
[EventCountry "ENG"]
[SourceTitle "playchess.com"]
[Source "ChessBase"]
[SourceQuality "1"]
[TimeControl "5400+30"]

{[%evp 18,105,10,7,21,9,8,6,14,11,48,-14,-14,-11,-6,-16,-7,-17,-18,-23,37,-14,-10,-47,-31,-68,-54,-64,-36,-48,-37,-38,-33,-33,-17,-31,-22,-27,28,21,31,31,60,68,50,-13,-10,-28,-43,-24,-38,-32,0,0,0,0,0,0,0,0,8,8,8,8,8,8,9,0,0,0,0,0,0,0,0,0,0,0,0,0,0,0,0,0,0,0,0,0,0,0]} 1. d4 {[%emt 0:03:12]} Nf6 {[%emt 0:00:05]} 2. c4 {[%emt 0:00:12]} e6 {[%emt 0:00:06]} 3. Nf3 {[%emt 0:00:13]} b6 {[%emt 0:00:44]} 4. a3 {[%emt 0:00:59]} Bb7 {[%emt 0:00:11]} 5. Nc3 {[%emt 0:00:15]} Ne4 {[%emt 0:00:17]} 6. Nxe4 {[%emt 0:10:32]} Bxe4 {[%emt 0:00:12]} 7. Bg5 {[%emt 0:00:11]} Be7 {[%emt 0:00:34]} 8. Bxe7 {[%emt 0:00:15]} Qxe7 {[%emt 0:00:04]} 9. e3 {[%emt 0:00:20]} O-O {[%emt 0:03:32] E12: Queen's Indian: Unusual White 4th moves, 4 a3, 4 Nc3 Bb7 5 a3 and 4 Nc3 Bb7 .} 10. Bd3 {[%emt 0:03:17]} Bb7 {[%emt 0:00:24]} 11. O-O {[%emt 0:00:50]} d6 {[%emt 0:01:33]} 12. d5 $146 {[%emt 0:10:15]} ({Predecessor:} 12. e4 Nd7 13. Re1 a5 14. Bc2 e5 15. d5 g6 16. b4 Bc8 17. Qd2 Kg7 18. g3 {0-1 Pultinevicius,P (2561)-Andreikin,D (2729) Titled Tuesday intern op 15th Nov Late blitz 2022 (9)}) 12... e5 {[%emt 0:08:18]} 13. e4 {[%emt 0:01:46]} c5 {[%emt 0:09:45]} 14. dxc6 {[%emt 0:01:14]} (14. Nd2 $14) 14... Nxc6 $11 {[%emt 0:00:31]} 15. b4 {[%emt 0:04:41]} Nd8 {[%emt 0:05:26]} 16. Re1 {[%emt 0:06:44]} Ne6 {[%emt 0:00:48]} 17. Rc1 {[%emt 0:00:26]} g6 {[%emt 0:04:43]} 18. Qd2 {[%emt 0:02:59]} f5 {[%emt 0:07:08]} (18... Rac8 $11) 19. Bb1 {[%emt 0:01:43]} (19. c5 $1 $14 bxc5 (19... dxc5 $2 20. exf5 gxf5 21. Rxe5 $18) 20. Bc4 fxe4 (20... Bxe4 $2 {is the wrong capture.} 21. Ng5 $18) 21. Ng5) 19... Rad8 {[%emt 0:03:02]} 20. Qb2 {[%emt 0:09:38]} Qf6 {[%emt 0:12:42]} 21. a4 {[%emt 0:20:20]} Kh8 {[%emt 0:01:34]} 22. Rc3 {[%emt 0:02:28]} Bc6 {[%emt 0:03:48]} 23. Ra3 {[%emt 0:00:55]} a5 {[%emt 0:02:32]} 24. bxa5 {[%emt 0:03:39]} bxa5 {[%emt 0:00:07]} 25. Qb6 {[%emt 0:00:19]} Ba8 {[%emt 0:13:21]} 26. Qxa5 {[%emt 0:02:39]} Rb8 {[%emt 0:01:42]} 27. Qd2 {[%emt 0:06:50]} Nc5 {[%emt 0:11:35]} ({Black should play} 27... Bxe4 28. Bxe4 fxe4 29. Rxe4 Nc5) 28. exf5 $11 {[%emt 0:00:10]} gxf5 {[%emt 0:00:22]} 29. Qg5 {[%emt 0:02:43]} Rb4 {[%emt 0:06:43]} 30. Qxf6+ {[%emt 0:04:12]} Rxf6 {[%emt 0:00:01]} 31. Ba2 {[%emt 0:01:31]} (31. a5 $14) 31... Bxf3 $11 {[%emt 0:01:01]} 32. Rxf3 {[%emt 0:00:28]} Rxa4 {[%emt 0:00:20]} 33. Bb1 {[%emt 0:00:20]} e4 {[%emt 0:01:08]} 34. Rc3 {[%emt 0:00:13]} Kg7 {[%emt 0:01:46]} 35. f3 {[%emt 0:00:31]} Ra1 {[%emt 0:00:41]} 36. fxe4 {[%emt 0:00:48]} fxe4 {[%emt 0:00:04]} 37. Rce3 {[%emt 0:00:10]} Rf5 {[%emt 0:01:32]} 38. Bc2 {[%emt 0:00:38]} (38. Bxe4 Rxe1+ 39. Rxe1 Re5 $19) 38... Rxe1+ {[%emt 0:00:22]} 39. Rxe1 {[%emt 0:00:05]} h5 {[%emt 0:00:39]} 40. Re2 {[%emt 0:00:36]} (40. Bxe4 $2 {perishes.} Re5 41. g3 Nxe4 $19) 40... Rf4 {[%emt 0:00:33]} 41. g3 {[%emt 0:00:19]} Rg4 {[%emt 0:00:07]} 42. Kg2 {[%emt 0:01:19]} e3 {[%emt 0:00:14]} 43. Rxe3 {[%emt 0:00:06]} Rxc4 {[%emt 0:00:04]} 44. Bd1 {[%emt 0:00:22]} Kg6 {[%emt 0:00:31]} 45. Re8 {[%emt 0:00:25]} Rd4 {[%emt 0:01:14]} 46. Bf3 {[%emt 0:00:09]} h4 {[%emt 0:00:41]} 47. gxh4 {[%emt 0:00:14]} Rxh4 {[%emt 0:00:04]} 48. Kg3 {[%emt 0:00:16]} Rd4 {[%emt 0:00:39]} 49. h4 {[%emt 0:00:47]} d5 {[%emt 0:00:22]} 50. h5+ {[%emt 0:00:23]} Kg7 {[%emt 0:00:45]} 51. Re7+ {[%emt 0:01:12]} Kh6 {[%emt 0:00:16]} 52. Re5 {[%emt 0:00:33]} Ne4+ {[%emt 0:00:14]} 53. Bxe4 {[%emt 0:00:07]} 1/2-1/2